[Event "Chessable Masters - Torneo preliminare"]
[White "Meier, Georg"]
[Black "Giri, Anish"]
[WhiteFideId "4675789"]
[BlackFideId "24116068"]
[WhiteElo "2624"]
[BlackElo "2714"]
[Result "1/2-1/2"]
[Round "5"]
[TimeControl "600+2"]
[Date "2023.03.13"]
[WhiteClock "0:09:56"]
[BlackClock "0:06:36"]

1. Nf3 {[%clk 0:10:01]}  d5 {[%clk 0:09:55]} 2. g3 {[%clk 0:10:03]}  Nf6 {[%clk 0:09:52]} 3. Bg2 {[%clk 0:10:04]}  e6 {[%clk 0:09:54]} 4. O-O {[%clk 0:10:05]}  Be7 {[%clk 0:09:54]} 5. c4 {[%clk 0:10:04]}  O-O {[%clk 0:09:55]} 6. d4 {[%clk 0:10:05]}  dxc4 {[%clk 0:09:55]} 7. Qc2 {[%clk 0:10:03]}  a6 {[%clk 0:09:56]} 8. Qxc4 {[%clk 0:10:04]}  b5 {[%clk 0:09:57]} 9. Qc2 {[%clk 0:10:06]}  Bb7 {[%clk 0:09:59]} 10. Bg5 {[%clk 0:10:07]}  Nbd7 {[%clk 0:09:56]} 11. Bxf6 {[%clk 0:10:07]}  Nxf6 {[%clk 0:09:56]} 12. Nbd2 {[%clk 0:10:08]}  Rc8 {[%clk 0:09:55]} 13. Nb3 {[%clk 0:10:09]}  c5 {[%clk 0:08:37]} 14. dxc5 {[%clk 0:10:11]}  Ne4 {[%clk 0:08:27]} 15. Rfd1 {[%clk 0:10:02]}  Qc7 {[%clk 0:08:22]} 16. c6 {[%clk 0:09:56]}  Qxc6 {[%clk 0:08:17]} 17. Qxc6 {[%clk 0:09:56]}  Bxc6 {[%clk 0:08:18]} 18. Ne5 {[%clk 0:09:58]}  Bd5 {[%clk 0:07:42]} 19. Nd7 {[%clk 0:09:59]}  Rfe8 {[%clk 0:07:10]} 20. Nb6 {[%clk 0:09:59]}  Rc2 {[%clk 0:07:10]} 21. Nxd5 {[%clk 0:10:00]}  exd5 {[%clk 0:07:12]} 22. Rxd5 {[%clk 0:09:56]}  Bf6 {[%clk 0:06:36]} 1/2-1/2


[Site "Internet"]

[Event "Chessable Masters - Torneo preliminare"]
[White "Sevian, Samuel"]
[Black "Bluebaum, Matthias"]
[WhiteFideId "2040506"]
[BlackFideId "24651516"]
[WhiteElo "2582"]
[BlackElo "2601"]
[Result "1-0"]
[Round "5"]
[TimeControl "600+2"]
[Date "2023.03.13"]
[WhiteClock "0:00:53"]
[BlackClock "0:00:05"]

1. c4 {[%clk 0:10:01]}  e6 {[%clk 0:10:00]} 2. Nc3 {[%clk 0:10:02]}  d5 {[%clk 0:10:02]} 3. d4 {[%clk 0:10:04]}  Bb4 {[%clk 0:10:03]} 4. cxd5 {[%clk 0:10:01]}  exd5 {[%clk 0:10:05]} 5. Bf4 {[%clk 0:10:02]}  c5 {[%clk 0:10:06]} 6. e3 {[%clk 0:10:01]}  c4 {[%clk 0:10:08]} 7. Nf3 {[%clk 0:08:20]}  Nc6 {[%clk 0:10:05]} 8. Be2 {[%clk 0:08:20]}  Nf6 {[%clk 0:09:56]} 9. O-O {[%clk 0:08:21]}  O-O {[%clk 0:09:56]} 10. Nd2 {[%clk 0:07:12]}  Bf5 {[%clk 0:09:23]} 11. Bg5 {[%clk 0:07:00]}  Bxc3 {[%clk 0:08:32]} 12. bxc3 {[%clk 0:07:02]}  h6 {[%clk 0:08:29]} 13. Bh4 {[%clk 0:07:02]}  Qd6 {[%clk 0:08:29]} 14. f3 {[%clk 0:06:56]}  g5 {[%clk 0:06:43]} 15. Bg3 {[%clk 0:05:25]}  Qa3 {[%clk 0:06:24]} 16. e4 {[%clk 0:05:20]}  dxe4 {[%clk 0:06:09]} 17. fxe4 {[%clk 0:05:07]}  Nxe4 {[%clk 0:06:10]} 18. Nxc4 {[%clk 0:02:42]}  Qxc3 {[%clk 0:05:02]} 19. Rxf5 {[%clk 0:02:42]}  Nxg3 {[%clk 0:05:04]} 20. hxg3 {[%clk 0:02:32]}  Nxd4 {[%clk 0:05:05]} 21. Rf1 {[%clk 0:02:17]}  Rad8 {[%clk 0:04:06]} 22. Kh2 {[%clk 0:01:43]}  Rfe8 {[%clk 0:02:39]} 23. Bd3 {[%clk 0:01:40]}  Ne2 {[%clk 0:01:58]} 24. Rf3 {[%clk 0:01:02]}  Rxd3 {[%clk 0:01:39]} 25. Rxd3 {[%clk 0:00:59]}  Qxc4 {[%clk 0:01:40]} 26. Rd8 {[%clk 0:00:53]}  Rxd8 {[%clk 0:00:51]} 27. Qxd8+ {[%clk 0:00:55]}  Kg7 {[%clk 0:00:53]} 28. Rf1 {[%clk 0:00:56]}  Qc3 {[%clk 0:00:34]} 29. Qd6 {[%clk 0:00:56]}  b5 {[%clk 0:00:07]} 30. Rf2 {[%clk 0:00:54]}  Qd4 {[%clk 0:00:09]} 31. Qxd4+ {[%clk 0:00:48]}  Nxd4 {[%clk 0:00:11]} 32. Rd2 {[%clk 0:00:49]}  Nc6 {[%clk 0:00:10]} 33. Rc2 {[%clk 0:00:46]}  Nd4 {[%clk 0:00:07]} 34. Rc5 {[%clk 0:00:46]}  a6 {[%clk 0:00:07]} 35. Rd5 {[%clk 0:00:41]}  Ne6 {[%clk 0:00:07]} 36. Rd6 {[%clk 0:00:42]}  Nc5 {[%clk 0:00:06]} 37. Rc6 {[%clk 0:00:41]}  Na4 {[%clk 0:00:04]} 38. Rxa6 {[%clk 0:00:43]}  Nc3 {[%clk 0:00:05]} 39. a3 {[%clk 0:00:42]}  Nb1 {[%clk 0:00:03]} 40. Kg1 {[%clk 0:00:43]}  f6 {[%clk 0:00:03]} 41. Kf2 {[%clk 0:00:44]}  Kg6 {[%clk 0:00:05]} 42. Ke3 {[%clk 0:00:45]}  Nc3 {[%clk 0:00:06]} 43. Kd3 {[%clk 0:00:46]}  Na4 {[%clk 0:00:05]} 44. Ra5 {[%clk 0:00:44]}  Nc5+ {[%clk 0:00:04]} 45. Ke3 {[%clk 0:00:45]}  Nb7 {[%clk 0:00:02]} 46. Rxb5 {[%clk 0:00:47]}  Nd6 {[%clk 0:00:04]} 47. Rb4 {[%clk 0:00:48]}  h5 {[%clk 0:00:05]} 48. a4 {[%clk 0:00:49]}  h4 {[%clk 0:00:05]} 49. gxh4 {[%clk 0:00:50]}  gxh4 {[%clk 0:00:07]} 50. a5 {[%clk 0:00:51]}  Nf5+ {[%clk 0:00:05]} 51. Kf2 {[%clk 0:00:51]}  Kg5 {[%clk 0:00:05]} 52. Rb5 {[%clk 0:00:51]}  Kg4 {[%clk 0:00:03]} 53. Rxf5 {[%clk 0:00:52]}  h3 {[%clk 0:00:04]} 54. gxh3+ {[%clk 0:00:52]}  Kh4 {[%clk 0:00:04]} 55. Kf3 {[%clk 0:00:51]}  Kxh3 {[%clk 0:00:05]} 56. Rh5# {[%clk 0:00:53]} 1-0


[Site "Internet"]

[Event "Chessable Masters - Torneo preliminare"]
[White "Vachier-Lagrave, Maxime"]
[Black "Oparin, Grigoriy"]
[WhiteFideId "623539"]
[BlackFideId "24125890"]
[WhiteElo "2762"]
[BlackElo "2650"]
[Result "1-0"]
[Round "5"]
[TimeControl "600+2"]
[Date "2023.03.13"]
[WhiteClock "0:03:46"]
[BlackClock "0:04:26"]

1. e4 {[%clk 0:10:01]}  e5 {[%clk 0:10:00]} 2. Nf3 {[%clk 0:10:00]}  Nc6 {[%clk 0:10:01]} 3. Bb5 {[%clk 0:10:01]}  a6 {[%clk 0:10:02]} 4. Ba4 {[%clk 0:10:02]}  Nf6 {[%clk 0:10:00]} 5. O-O {[%clk 0:10:03]}  Nxe4 {[%clk 0:10:00]} 6. d4 {[%clk 0:10:04]}  b5 {[%clk 0:10:01]} 7. Bb3 {[%clk 0:10:05]}  d5 {[%clk 0:10:03]} 8. dxe5 {[%clk 0:10:06]}  Be6 {[%clk 0:10:05]} 9. c3 {[%clk 0:09:58]}  Be7 {[%clk 0:10:05]} 10. Bc2 {[%clk 0:09:51]}  O-O {[%clk 0:10:06]} 11. Nbd2 {[%clk 0:09:51]}  f5 {[%clk 0:10:07]} 12. exf6 {[%clk 0:09:52]}  Nxf6 {[%clk 0:10:08]} 13. Re1 {[%clk 0:09:52]}  Bg4 {[%clk 0:10:07]} 14. a4 {[%clk 0:09:20]}  b4 {[%clk 0:10:04]} 15. h3 {[%clk 0:07:50]}  Bh5 {[%clk 0:10:04]} 16. Nf1 {[%clk 0:07:51]}  Bc5 {[%clk 0:10:00]} 17. Be3 {[%clk 0:07:52]}  Bxe3 {[%clk 0:09:48]} 18. Rxe3 {[%clk 0:07:54]}  bxc3 {[%clk 0:09:41]} 19. bxc3 {[%clk 0:07:54]}  d4 {[%clk 0:09:38]} 20. cxd4 {[%clk 0:07:37]}  Bxf3 {[%clk 0:09:38]} 21. Rxf3 {[%clk 0:07:38]}  Nxd4 {[%clk 0:09:39]} 22. Rc3 {[%clk 0:07:13]}  Qd6 {[%clk 0:08:45]} 23. Rc1 {[%clk 0:06:38]}  Rad8 {[%clk 0:08:35]} 24. Ne3 {[%clk 0:06:08]}  Qf4 {[%clk 0:08:14]} 25. Qf1 {[%clk 0:05:20]}  Nxc2 {[%clk 0:07:19]} 26. R1xc2 {[%clk 0:05:22]}  Qxa4 {[%clk 0:07:20]} 27. Rxc7 {[%clk 0:05:22]}  Nd5 {[%clk 0:07:14]} 28. Nxd5 {[%clk 0:05:16]}  Rxd5 {[%clk 0:07:15]} 29. Qe2 {[%clk 0:04:51]}  Qa1+ {[%clk 0:06:10]} 30. Rc1 {[%clk 0:04:50]}  Qf6 {[%clk 0:06:10]} 31. Ra7 {[%clk 0:04:30]}  Re5 {[%clk 0:05:55]} 32. Qa2+ {[%clk 0:04:26]}  Qe6 {[%clk 0:05:28]} 33. Rcc7 {[%clk 0:04:14]}  Re1+ {[%clk 0:04:37]} 34. Kh2 {[%clk 0:04:13]}  Kh8 {[%clk 0:04:39]} 35. Qxe6 {[%clk 0:04:05]}  Rxe6 {[%clk 0:04:41]} 36. Rxg7 {[%clk 0:04:06]}  Rh6 {[%clk 0:04:37]} 37. Rgd7 {[%clk 0:03:54]}  Kg8 {[%clk 0:04:35]} 38. f3 {[%clk 0:03:53]}  Re8 {[%clk 0:04:26]} 39. g4 {[%clk 0:03:46]} 1-0


[Site "Internet"]

[Event "Chessable Masters - Torneo preliminare"]
[White "Firouzja, Alireza"]
[Black "Alekseenko, Kirill"]
[WhiteFideId "12573981"]
[BlackFideId "4135539"]
[WhiteElo "2745"]
[BlackElo "2632"]
[Result "1-0"]
[Round "5"]
[TimeControl "600+2"]
[Date "2023.03.13"]
[WhiteClock "0:03:39"]
[BlackClock "0:00:03"]

1. e4 {[%clk 0:10:01]}  e5 {[%clk 0:09:59]} 2. Nf3 {[%clk 0:10:02]}  Nc6 {[%clk 0:10:00]} 3. Bb5 {[%clk 0:10:03]}  a6 {[%clk 0:10:01]} 4. Ba4 {[%clk 0:10:04]}  Nf6 {[%clk 0:10:03]} 5. O-O {[%clk 0:10:05]}  Be7 {[%clk 0:10:04]} 6. d3 {[%clk 0:10:04]}  b5 {[%clk 0:10:05]} 7. Bb3 {[%clk 0:10:06]}  d6 {[%clk 0:10:07]} 8. c3 {[%clk 0:10:07]}  O-O {[%clk 0:09:45]} 9. h3 {[%clk 0:10:08]}  Na5 {[%clk 0:08:41]} 10. Bc2 {[%clk 0:10:07]}  c5 {[%clk 0:08:42]} 11. d4 {[%clk 0:10:09]}  Qc7 {[%clk 0:08:40]} 12. d5 {[%clk 0:10:06]}  Nc4 {[%clk 0:08:40]} 13. a4 {[%clk 0:09:40]}  Nb6 {[%clk 0:08:03]} 14. b3 {[%clk 0:08:55]}  Bd7 {[%clk 0:04:41]} 15. Be3 {[%clk 0:08:10]}  bxa4 {[%clk 0:04:37]} 16. bxa4 {[%clk 0:08:12]}  Nc4 {[%clk 0:04:38]} 17. Bc1 {[%clk 0:08:12]}  Rfb8 {[%clk 0:04:36]} 18. Qe2 {[%clk 0:08:05]}  Na5 {[%clk 0:04:37]} 19. Nbd2 {[%clk 0:08:06]}  Be8 {[%clk 0:04:07]} 20. Ra2 {[%clk 0:07:42]}  Nd7 {[%clk 0:04:01]} 21. Re1 {[%clk 0:07:39]}  Nb6 {[%clk 0:03:32]} 22. Nf1 {[%clk 0:07:21]}  c4 {[%clk 0:03:23]} 23. Ne3 {[%clk 0:07:00]}  Nb3 {[%clk 0:02:58]} 24. a5 {[%clk 0:05:54]}  Na4 {[%clk 0:02:59]} 25. Bd2 {[%clk 0:05:55]}  Rc8 {[%clk 0:01:39]} 26. Ra3 {[%clk 0:05:09]}  Rab8 {[%clk 0:01:27]} 27. Nxc4 {[%clk 0:04:17]}  Nxc3 {[%clk 0:01:10]} 28. Bxc3 {[%clk 0:04:17]}  Qxc4 {[%clk 0:01:11]} 29. Qxc4 {[%clk 0:04:15]}  Rxc4 {[%clk 0:01:12]} 30. Re3 {[%clk 0:04:17]}  Nd4 {[%clk 0:00:55]} 31. Bd3 {[%clk 0:04:15]}  Nxf3+ {[%clk 0:00:34]} 32. Rxf3 {[%clk 0:04:16]}  Ra4 {[%clk 0:00:25]} 33. Rxa4 {[%clk 0:04:16]}  Bxa4 {[%clk 0:00:27]} 34. Bxa6 {[%clk 0:04:17]}  Rb1+ {[%clk 0:00:25]} 35. Kh2 {[%clk 0:04:17]}  Bd1 {[%clk 0:00:20]} 36. Re3 {[%clk 0:04:15]}  Bg5 {[%clk 0:00:14]} 37. Re1 {[%clk 0:04:16]}  Rb3 {[%clk 0:00:06]} 38. Rxd1 {[%clk 0:03:35]}  Rxc3 {[%clk 0:00:07]} 39. Ra1 {[%clk 0:03:37]}  Bd8 {[%clk 0:00:03]} 40. Bb7 {[%clk 0:03:37]}  Rc7 {[%clk 0:00:03]} 41. a6 {[%clk 0:03:39]} 1-0


[Site "Internet"]

[Event "Chessable Masters - Torneo preliminare"]
[White "Paravyan, David"]
[Black "Salem, A.R. Saleh"]
[WhiteFideId "4194985"]
[BlackFideId "9301348"]
[WhiteElo "2598"]
[BlackElo "2654"]
[Result "0-1"]
[Round "5"]
[TimeControl "600+2"]
[Date "2023.03.13"]
[WhiteClock "0:00:06"]
[BlackClock "0:00:14"]

1. e4 {[%clk 0:10:01]}  e5 {[%clk 0:09:45]} 2. Nf3 {[%clk 0:10:02]}  Nc6 {[%clk 0:09:47]} 3. Bb5 {[%clk 0:10:04]}  a6 {[%clk 0:09:48]} 4. Ba4 {[%clk 0:10:05]}  Nf6 {[%clk 0:09:50]} 5. O-O {[%clk 0:10:06]}  Be7 {[%clk 0:09:51]} 6. Re1 {[%clk 0:10:07]}  b5 {[%clk 0:09:52]} 7. Bb3 {[%clk 0:10:09]}  O-O {[%clk 0:09:53]} 8. h3 {[%clk 0:10:10]}  Bb7 {[%clk 0:09:53]} 9. d3 {[%clk 0:10:11]}  d6 {[%clk 0:09:54]} 10. a3 {[%clk 0:10:10]}  Nb8 {[%clk 0:09:54]} 11. Ba2 {[%clk 0:10:02]}  Nbd7 {[%clk 0:09:37]} 12. Be3 {[%clk 0:10:02]}  d5 {[%clk 0:09:26]} 13. exd5 {[%clk 0:09:36]}  Nxd5 {[%clk 0:09:28]} 14. Bd2 {[%clk 0:09:12]}  Kh8 {[%clk 0:09:28]} 15. Nc3 {[%clk 0:09:09]}  Nxc3 {[%clk 0:09:29]} 16. Bxc3 {[%clk 0:09:11]}  f6 {[%clk 0:09:31]} 17. Ba5 {[%clk 0:08:25]}  Bd6 {[%clk 0:08:58]} 18. c4 {[%clk 0:07:19]}  bxc4 {[%clk 0:08:31]} 19. Bxc4 {[%clk 0:07:12]}  Nb6 {[%clk 0:07:47]} 20. Be6 {[%clk 0:05:38]}  Rb8 {[%clk 0:06:06]} 21. Bxb6 {[%clk 0:05:13]}  cxb6 {[%clk 0:06:05]} 22. Bf5 {[%clk 0:05:13]}  Bxf3 {[%clk 0:04:26]} 23. Qxf3 {[%clk 0:05:10]}  g6 {[%clk 0:04:28]} 24. Be6 {[%clk 0:04:59]}  a5 {[%clk 0:03:38]} 25. d4 {[%clk 0:04:42]}  exd4 {[%clk 0:03:38]} 26. Bc4 {[%clk 0:04:43]}  Be5 {[%clk 0:03:26]} 27. Bd3 {[%clk 0:04:36]}  Rc8 {[%clk 0:03:12]} 28. g3 {[%clk 0:04:29]}  Qd7 {[%clk 0:03:09]} 29. Kg2 {[%clk 0:04:29]}  Kg7 {[%clk 0:03:04]} 30. h4 {[%clk 0:04:27]}  h5 {[%clk 0:02:31]} 31. Rac1 {[%clk 0:04:17]}  Rxc1 {[%clk 0:01:53]} 32. Rxc1 {[%clk 0:04:19]}  Rd8 {[%clk 0:01:51]} 33. Rc6 {[%clk 0:03:44]}  f5 {[%clk 0:00:28]} 34. Rxb6 {[%clk 0:03:33]}  Rb8 {[%clk 0:00:20]} 35. Rxb8 {[%clk 0:03:03]}  Bxb8 {[%clk 0:00:22]} 36. Qa8 {[%clk 0:03:03]}  Bc7 {[%clk 0:00:12]} 37. Qb7 {[%clk 0:02:02]}  Qd6 {[%clk 0:00:12]} 38. f4 {[%clk 0:02:00]}  Qb6 {[%clk 0:00:09]} 39. Qd5 {[%clk 0:01:37]}  Qxb2+ {[%clk 0:00:10]} 40. Kh3 {[%clk 0:01:39]}  Qxa3 {[%clk 0:00:05]} 41. Qd7+ {[%clk 0:00:58]}  Kh6 {[%clk 0:00:05]} 42. Qc8 {[%clk 0:00:59]}  Qe7 {[%clk 0:00:04]} 43. Qh8+ {[%clk 0:00:51]}  Qh7 {[%clk 0:00:06]} 44. Qxd4 {[%clk 0:00:52]}  Qg7 {[%clk 0:00:08]} 45. Qc5 {[%clk 0:00:49]}  Bd8 {[%clk 0:00:07]} 46. Bc4 {[%clk 0:00:46]}  Qe7 {[%clk 0:00:06]} 47. Qd4 {[%clk 0:00:47]}  Qf6 {[%clk 0:00:06]} 48. Qd7 {[%clk 0:00:32]}  Be7 {[%clk 0:00:07]} 49. Bd5 {[%clk 0:00:29]}  Qd6 {[%clk 0:00:04]} 50. Qe8 {[%clk 0:00:31]}  Qf6 {[%clk 0:00:04]} 51. Qa8 {[%clk 0:00:32]}  Bb4 {[%clk 0:00:04]} 52. Qb7 {[%clk 0:00:27]}  Qa1 {[%clk 0:00:03]} 53. Bg2 {[%clk 0:00:21]}  Qg7 {[%clk 0:00:05]} 54. Qa8 {[%clk 0:00:22]}  Qc3 {[%clk 0:00:06]} 55. Bf3 {[%clk 0:00:20]}  Qa1 {[%clk 0:00:06]} 56. Qb8 {[%clk 0:00:17]}  Bc3 {[%clk 0:00:05]} 57. Qf8+ {[%clk 0:00:18]}  Bg7 {[%clk 0:00:07]} 58. Qd6 {[%clk 0:00:16]}  a4 {[%clk 0:00:08]} 59. Bd5 {[%clk 0:00:11]}  a3 {[%clk 0:00:08]} 60. Qa6 {[%clk 0:00:12]}  Qd1 {[%clk 0:00:06]} 61. Qa5 {[%clk 0:00:09]}  Qf1+ {[%clk 0:00:06]} 62. Bg2 {[%clk 0:00:10]}  Qd3 {[%clk 0:00:06]} 63. Bd5 {[%clk 0:00:06]}  Qd1 {[%clk 0:00:07]} 64. Bg2 {[%clk 0:00:05]}  Qb3 {[%clk 0:00:09]} 65. Bd5 {[%clk 0:00:05]}  Qd3 {[%clk 0:00:10]} 66. Bg2 {[%clk 0:00:06]}  Qe3 {[%clk 0:00:11]} 67. Bd5 {[%clk 0:00:07]}  Bf6 {[%clk 0:00:11]} 68. Qa6 {[%clk 0:00:06]}  Qd4 {[%clk 0:00:10]} 69. Bg2 {[%clk 0:00:03]}  Qb2 {[%clk 0:00:10]} 70. Bd5 {[%clk 0:00:05]}  Qd4 {[%clk 0:00:10]} 71. Bg2 {[%clk 0:00:05]}  Qc3 {[%clk 0:00:09]} 72. Bd5 {[%clk 0:00:06]}  Bg7 {[%clk 0:00:09]} 73. Bf7 {[%clk 0:00:06]}  Qf6 {[%clk 0:00:10]} 74. Qxf6 {[%clk 0:00:05]}  Bxf6 {[%clk 0:00:12]} 75. Kg2 {[%clk 0:00:07]}  Kg7 {[%clk 0:00:13]} 76. Bb3 {[%clk 0:00:08]}  Bc3 {[%clk 0:00:13]} 77. Kf3 {[%clk 0:00:09]}  Be1 {[%clk 0:00:14]} 78. Kg2 {[%clk 0:00:06]}  Kf6 {[%clk 0:00:15]} 79. Kf3 {[%clk 0:00:08]}  Ke7 {[%clk 0:00:17]} 80. Kg2 {[%clk 0:00:06]}  Kd6 {[%clk 0:00:18]} 81. Kf3 {[%clk 0:00:06]}  Kc5 {[%clk 0:00:19]} 82. Bf7 {[%clk 0:00:08]}  Kd4 {[%clk 0:00:17]} 83. Kg2 {[%clk 0:00:06]}  Kc3 {[%clk 0:00:14]} 0-1


[Site "Internet"]

[Event "Chessable Masters - Torneo preliminare"]
[White "Dubov, Daniil"]
[Black "Antipov, Mikhail Al."]
[WhiteFideId "24126055"]
[BlackFideId "4107012"]
[WhiteElo "2727"]
[BlackElo "2593"]
[Result "1/2-1/2"]
[Round "5"]
[TimeControl "600+2"]
[Date "2023.03.13"]
[WhiteClock "0:00:44"]
[BlackClock "0:02:03"]

1. d4 {[%clk 0:10:01]}  Nf6 {[%clk 0:09:56]} 2. c4 {[%clk 0:10:02]}  e6 {[%clk 0:09:56]} 3. Nc3 {[%clk 0:10:03]}  Bb4 {[%clk 0:09:56]} 4. e3 {[%clk 0:10:04]}  c5 {[%clk 0:09:56]} 5. Bd3 {[%clk 0:09:57]}  Nc6 {[%clk 0:09:51]} 6. Ne2 {[%clk 0:09:54]}  O-O {[%clk 0:09:44]} 7. O-O {[%clk 0:09:21]}  cxd4 {[%clk 0:08:49]} 8. exd4 {[%clk 0:09:21]}  d5 {[%clk 0:08:50]} 9. cxd5 {[%clk 0:08:49]}  Nxd5 {[%clk 0:08:49]} 10. Qc2 {[%clk 0:08:34]}  Nf6 {[%clk 0:08:00]} 11. a3 {[%clk 0:08:19]}  Be7 {[%clk 0:07:57]} 12. Rd1 {[%clk 0:07:46]}  h6 {[%clk 0:07:30]} 13. Bf4 {[%clk 0:07:24]}  Re8 {[%clk 0:06:19]} 14. Rac1 {[%clk 0:07:05]}  Bf8 {[%clk 0:06:12]} 15. Be5 {[%clk 0:05:47]}  Bd7 {[%clk 0:05:54]} 16. Ng3 {[%clk 0:05:42]}  Ng4 {[%clk 0:05:31]} 17. Bf4 {[%clk 0:05:02]}  Qh4 {[%clk 0:05:10]} 18. Nf1 {[%clk 0:04:31]}  Rac8 {[%clk 0:04:25]} 19. Bg3 {[%clk 0:04:21]}  Qd8 {[%clk 0:04:12]} 20. Qe2 {[%clk 0:03:41]}  Nf6 {[%clk 0:04:09]} 21. Bb1 {[%clk 0:03:36]}  Ne7 {[%clk 0:04:04]} 22. Ne3 {[%clk 0:03:33]}  Nf5 {[%clk 0:03:04]} 23. Be5 {[%clk 0:03:04]}  g6 {[%clk 0:02:48]} 24. Ng4 {[%clk 0:01:51]}  Nxg4 {[%clk 0:02:46]} 25. Qxg4 {[%clk 0:01:53]}  h5 {[%clk 0:02:48]} 26. Qh3 {[%clk 0:01:46]}  Bh6 {[%clk 0:02:41]} 27. Ne4 {[%clk 0:01:08]}  Rxc1 {[%clk 0:02:11]} 28. Rxc1 {[%clk 0:01:09]}  Bxc1 {[%clk 0:01:59]} 29. Nf6+ {[%clk 0:01:08]}  Kf8 {[%clk 0:02:00]} 30. Nh7+ {[%clk 0:00:59]}  Kg8 {[%clk 0:02:01]} 31. Nf6+ {[%clk 0:01:00]}  Kf8 {[%clk 0:02:02]} 32. Nh7+ {[%clk 0:00:42]}  Kg8 {[%clk 0:02:03]} 33. Nf6+ {[%clk 0:00:44]} 1/2-1/2


[Site "Internet"]

[Event "Chessable Masters - Torneo preliminare"]
[White "Mitrabha, Guha"]
[Black "Le, Tuan Minh"]
[WhiteFideId "5057000"]
[BlackFideId "12401153"]
[WhiteElo "2401"]
[BlackElo "2489"]
[Result "0-1"]
[Round "5"]
[TimeControl "600+2"]
[Date "2023.03.13"]
[WhiteClock "0:04:35"]
[BlackClock "0:01:32"]

1. c4 {[%clk 0:09:38]}  c6 {[%clk 0:09:57]} 2. d4 {[%clk 0:09:38]}  d5 {[%clk 0:09:58]} 3. cxd5 {[%clk 0:09:40]}  cxd5 {[%clk 0:09:59]} 4. Nc3 {[%clk 0:09:42]}  Nf6 {[%clk 0:09:59]} 5. Bf4 {[%clk 0:09:42]}  Nc6 {[%clk 0:10:00]} 6. Nf3 {[%clk 0:09:42]}  a6 {[%clk 0:10:00]} 7. Rc1 {[%clk 0:09:42]}  Bf5 {[%clk 0:09:48]} 8. e3 {[%clk 0:09:43]}  e6 {[%clk 0:07:32]} 9. Be2 {[%clk 0:09:34]}  Bd6 {[%clk 0:07:27]} 10. Bxd6 {[%clk 0:09:32]}  Qxd6 {[%clk 0:07:29]} 11. O-O {[%clk 0:09:34]}  O-O {[%clk 0:07:29]} 12. Na4 {[%clk 0:09:29]}  Rac8 {[%clk 0:07:24]} 13. Nc5 {[%clk 0:09:26]}  Rc7 {[%clk 0:07:03]} 14. a3 {[%clk 0:09:16]}  Bg4 {[%clk 0:06:22]} 15. b4 {[%clk 0:08:53]}  Bxf3 {[%clk 0:06:05]} 16. Bxf3 {[%clk 0:08:55]}  Rfc8 {[%clk 0:05:54]} 17. Qd2 {[%clk 0:08:52]}  Ne7 {[%clk 0:05:31]} 18. h3 {[%clk 0:08:19]}  g6 {[%clk 0:05:30]} 19. Qb2 {[%clk 0:08:15]}  h5 {[%clk 0:05:20]} 20. Be2 {[%clk 0:08:08]}  Kg7 {[%clk 0:05:13]} 21. Bd3 {[%clk 0:08:06]}  h4 {[%clk 0:04:58]} 22. Rc2 {[%clk 0:07:53]}  Nf5 {[%clk 0:04:34]} 23. Rfc1 {[%clk 0:07:42]}  Qe7 {[%clk 0:04:30]} 24. Bxf5 {[%clk 0:07:19]}  exf5 {[%clk 0:04:26]} 25. Qb3 {[%clk 0:07:06]}  f4 {[%clk 0:03:32]} 26. exf4 {[%clk 0:07:02]}  b6 {[%clk 0:03:33]} 27. Nd3 {[%clk 0:06:33]}  Rxc2 {[%clk 0:03:34]} 28. Rxc2 {[%clk 0:06:34]}  Rxc2 {[%clk 0:03:33]} 29. Qxc2 {[%clk 0:06:36]}  Qe4 {[%clk 0:03:34]} 30. Qc3 {[%clk 0:06:26]}  Qe2 {[%clk 0:03:30]} 31. Ne5 {[%clk 0:06:22]}  Ne4 {[%clk 0:03:23]} 32. Qe3 {[%clk 0:06:22]}  Qd1+ {[%clk 0:03:22]} 33. Kh2 {[%clk 0:06:22]}  Nd2 {[%clk 0:02:44]} 34. Qd3 {[%clk 0:05:53]}  Qc1 {[%clk 0:02:44]} 35. g4 {[%clk 0:05:22]}  hxg3+ {[%clk 0:02:11]} 36. Kxg3 {[%clk 0:04:47]}  Qg1+ {[%clk 0:01:57]} 37. Kh4 {[%clk 0:04:42]}  Ne4 {[%clk 0:01:37]} 38. Qe3 {[%clk 0:04:35]}  Nd6 {[%clk 0:01:32]} 0-1


[Site "Internet"]